bitfinex-derivatives/quotes_ETHF0:USTF0_20250520
["timestamp","ask_amount","ask_price","bid_price","bid_amount"]
[1747782222822,2.73401816,2520.1,2519.7,3.2078]
[1747782223020,0.79343,2520.0,2519.9,0.79342]
[1747782223423,1.54332815,2520.1,2520.0,0.79341]
[1747782223622,1.54332815,2520.1,2519.8,1.3959]
[1747782223623,0.79343,2520.0,2519.8,1.3959]
[1747782223820,0.79343,2520.0,2519.9,0.79342]
[1747782224030,2.77759501,2520.0,2519.9,0.79342]
[1747782224527,0.79346,2519.9,2519.8,0.79345]
[1747782224927,0.79346,2519.9,2519.8,2.18935]
[1747782225130,2.777705,2519.9,2519.8,2.18935]
[1747782225318,0.79346,2519.9,2519.8,2.18935]
[1747782225628,0.79346,2519.9,2519.7,3.2078]
[1747782225629,0.79347,2519.8,2519.7,3.2078]
[1747782226125,2.77779501,2519.8,2519.7,3.2078]
[1747782226325,0.74992815,2520.1,2519.7,5.192125]
[1747782226522,2.73413315,2520.1,2519.7,3.2078]
[1747782226725,1.54331815,2520.1,2520.0,4.00121]
[1747782226928,1.54331815,2520.1,2520.0,3.2078]
[1747782226929,3.52752315,2520.1,2520.0,3.2078]
[1747782227121,0.79347,2519.8,2519.7,0.79348]
[1747782227319,0.79346,2519.9,2519.8,0.79344]
[1747782227526,0.79344,2520.0,2519.9,0.79342]
[1747782227926,2.77760501,2520.0,2519.9,4.00122]
[1747782228731,2.77760501,2520.0,2519.9,3.2078]
[1747782229031,2.77760501,2520.0,2519.9,4.00124]
[1747782229235,2.77760501,2520.0,2519.9,3.2078]
[1747782229827,2.77760501,2520.0,2519.9,4.00124]
[1747782230226,0.00596338,2520.1,2520.0,0.79341]
[1747782230434,0.00596338,2520.1,2520.0,2.18371]
[1747782230627,0.00596338,2520.1,2520.0,4.1678]
[1747782230827,0.00596338,2520.1,2520.0,2.18371]
[1747782231533,0.79934338,2520.1,2520.0,2.18371]
[1747782231732,0.79341,2520.0,2519.9,3.2078]
[1747782231934,0.79347,2519.8,2519.7,1.3131]
[1747782232236,0.79354,2519.6,2519.5,4.00135]
[1747782232437,1.44873,2519.7,2519.6,0.79354]
[1747782232621,0.79354,2519.6,2519.5,3.2078]
[1747782233027,2.77802,2519.6,2519.5,3.2078]
[1747782233435,0.79357,2519.5,2519.4,0.79359]
[1747782233638,2.14097,2519.5,2519.4,0.79359]
[1747782233838,4.12553,2519.5,2519.4,0.79359]
[1747782234524,0.79363,2519.4,2519.3,0.79362]
[1747782234725,0.79363,2519.3,2519.2,1.3131]
[1747782234929,0.79366,2519.2,2519.1,3.2078]
[1747782235228,2.10806,2519.2,2519.1,3.2078]
[1747782235535,9.092855,2519.2,2519.1,3.2078]
[1747782236332,0.79376,2518.9,2518.8,0.00596338]
[1747782236830,7.778795,2518.9,2518.8,0.00596338]
[1747782237032,48.578795,2518.9,2518.8,0.00596338]
[1747782237737,49.893195,2518.9,2518.8,0.00596338]
[1747782238334,44.893195,2518.9,2518.8,0.00596338]
[1747782238829,44.893195,2518.9,2518.8,1.36256338]
[1747782239336,4.093195,2518.9,2518.8,1.36256338]
[1747782239739,4.093195,2518.9,2518.8,0.00596338]
[1747782239935,44.893195,2518.9,2518.8,0.00596338]
[1747782240240,44.89824235,2518.9,2518.8,0.00596338]
[1747782243838,1.98458,2518.7,2518.1,3.2078]
[1747782244144,0.79398,2518.2,2518.1,4.5885]
[1747782244635,2.779565,2518.2,2518.1,4.5885]
[1747782245037,0.79404,2518.0,2517.9,0.00596338]
[1747782245231,1.9865,2518.1,2517.9,0.00596338]
[1747782245438,0.79401,2518.1,2518.0,0.79402]
[1747782245739,1.985665,2518.1,2518.0,0.79402]
[1747782246034,4.52176338,2518.4,2517.9,2.02656338]
[1747782246237,0.00596338,2518.4,2518.3,0.79394]
[1747782246639,0.00596338,2518.4,2518.3,4.160065]
[1747782248039,0.00596338,2518.4,2518.3,21.782065]
[1747782248536,0.00596338,2518.4,2518.3,4.160065]
[1747782249340,0.79987338,2518.4,2518.3,4.160065]
[1747782249540,0.00596338,2518.4,2518.3,4.160065]
[1747782251537,3.38e-06,2518.4,2518.3,9.160065]
[1747782252245,3.38e-06,2518.4,2518.3,35.161065]
[1747782253141,3.38e-06,2518.4,2518.3,35.47865075]
[1747782255036,3.2078,2519.5,2518.3,35.47865075]
[1747782255037,4.00117,2520.2,2518.4,3.2078]
[1747782255239,1.30750184,2520.3,2519.9,0.79344]
[1747782255240,0.7934,2520.1,2519.9,0.79344]
[1747782255439,0.7934,2520.1,2519.9,4.00124]
[1747782255632,2.97246612,2520.0,2519.9,4.00124]
[1747782256034,1.98416501,2520.0,2519.9,4.00124]
[1747782257747,0.7934,2520.1,2519.9,3.2078]
[1747782258050,2.78342339,2520.2,2520.1,0.79338]
[1747782258252,3.34265339,2520.2,2520.1,0.79338]
[1747782258545,1.99005339,2520.2,2520.1,0.79338]
[1747782259247,0.00596338,2520.2,2520.1,2.77739]
[1747782260144,0.00596338,2520.2,2520.1,0.79338]
[1747782261551,0.00596338,2520.2,2520.1,1.49528]
[1747782261737,0.00596338,2520.2,2520.1,3.47929]
[1747782262047,0.00596338,2520.2,2520.1,1.49528]
[1747782262649,0.00596338,2520.2,2520.1,3.47929]
[1747782263044,0.00596338,2520.2,2520.1,21.07829]
[1747782263547,3.38e-06,2520.2,2520.1,21.07829]
[1747782264346,3.38e-06,2520.2,2520.1,16.07829]
[1747782264546,3.38e-06,2520.2,2520.1,21.3956315]
[1747782265254,7.71441085,2521.4,2520.7,3.96593]
[1747782265551,7.71441085,2521.4,2521.3,0.793]
[1747782265752,1.983065,2521.4,2521.3,0.793]
[1747782266251,0.79295,2521.5,2521.4,0.79297]
[1747782266553,0.00592198,2521.6,2521.5,0.79294]
[1747782266779,1.98886699,2521.6,2521.4,3.2078]
[1747782266984,0.79303,2521.2,2521.1,0.00595096]
[1747782267458,2.77625,2521.2,2521.1,0.00595096]
[1747782268268,4.16875,2521.2,2521.1,0.00595096]
[1747782268864,7.37655,2521.2,2521.1,0.00595096]
[1747782270656,4.16875,2521.2,2521.1,0.00595096]
[1747782271973,2.77625,2521.2,2521.1,0.00595096]
[1747782272171,2.77625,2521.2,2521.1,0.79901096]
[1747782272475,1.98322,2521.2,2521.1,0.79901096]
[1747782272675,0.00592198,2521.6,2521.5,0.79294]
[1747782272870,0.79883198,2521.6,2521.5,0.79294]
[1747782273069,2.78173698,2521.6,2521.5,2.09634]
[1747782273373,0.79301,2521.3,2521.2,0.793]
[1747782273579,0.79299,2521.4,2521.3,0.79298]
[1747782273865,2.19926,2521.5,2521.4,0.79297]
[1747782274158,4.182225,2521.5,2521.4,0.79297]
[1747782274857,4.182225,2521.5,2521.4,4.00077]
[1747782275059,4.182225,2521.5,2521.4,3.2078]
[1747782275260,0.79303,2521.2,2521.1,3.21375096]
[1747782275455,0.79303,2521.2,2521.1,0.00595096]
[1747782275655,2.77625,2521.2,2521.1,0.00595096]
[1747782276150,2.86111477,2521.2,2521.1,0.00595096]
[1747782281258,43.66111477,2521.2,2521.1,0.00595096]
[1747782282261,44.31781477,2521.2,2521.1,0.00595096]
[1747782282875,0.79325,2520.5,2520.2,3.48835162]
[1747782283383,2.777025,2520.5,2520.2,3.48835162]
[1747782283574,9.885725,2520.5,2520.2,3.48835162]
[1747782283890,0.79332,2520.3,2520.2,0.00595096]
[1747782284068,4.00112,2520.3,2520.2,0.00595096]
[1747782284269,5.98505001,2520.3,2520.2,0.00595096]
[1747782285681,2.77725001,2520.3,2520.2,0.00595096]
[1747782286581,7.77725001,2520.3,2520.2,0.00595096]
[1747782286964,9.14835001,2520.3,2520.2,0.00595096]
[1747782287768,12.35615001,2520.3,2520.2,0.00595096]
[1747782288170,12.35615001,2520.3,2519.7,4.97374162]
[1747782288171,1.98348,2520.1,2519.7,3.48835162]
[1747782288359,1.98348,2520.1,2519.5,0.37665418]
[1747782288360,0.79354,2519.6,2519.5,0.28055162]
[1747782288571,0.79354,2519.6,2519.5,1.62e-06]
[1747782288864,0.79363,2519.3,2519.2,8.48e-06]
[1747782289070,18.56415,2519.3,2519.2,8.48e-06]
[1747782289260,0.79382,2518.7,2518.3,3.2078]
[1747782289460,57.37962,2518.7,2518.3,3.2078]
[1747782289656,59.36481,2518.7,2518.3,3.2078]
[1747782289957,0.79395,2518.3,2518.2,1.90018245]
[1747782290158,16.57975,2518.3,2518.2,1.90018245]
[1747782290359,18.565255,2518.3,2518.2,1.90018245]
[1747782290866,18.565255,2518.3,2518.0,0.00595096]
[1747782290867,5.193305,2518.3,2518.0,0.00595096]
[1747782291069,0.79401,2518.1,2518.0,0.79998096]
[1747782291264,0.794,2518.2,2518.0,0.79997096]
[1747782291572,0.79401,2518.1,2518.0,0.79997096]
[1747782291868,6.506885,2518.3,2518.1,0.79399]
[1747782292169,0.79398,2518.2,2518.1,2.14401]
[1747782292467,7.300845,2518.3,2518.2,0.79398]
[1747782292971,0.79398,2518.2,2518.1,2.14399]
[1747782293165,6.506885,2518.3,2518.0,0.00595096]
[1747782293166,0.79401,2518.1,2518.0,0.00595096]
[1747782293663,2.779675,2518.1,2518.0,0.00595096]
[1747782294859,1.985665,2518.1,2518.0,0.00595096]
[1747782295063,0.79401,2518.1,2518.0,1.99161595]
[1747782295359,2.779675,2518.1,2518.0,0.00595096]
[1747782296062,0.79401,2518.1,2518.0,0.00595096]
[1747782296261,4.176275,2518.1,2518.0,0.00595096]
[1747782296763,2.779675,2518.1,2518.0,0.00595096]
[1747782296962,2.779675,2518.1,2518.0,1.36565096]
[1747782298465,2.779675,2518.1,2518.0,0.00595096]
[1747782298865,0.79417,2517.6,2517.5,1.3597]
[1747782299366,2.78023001,2517.6,2517.5,1.3597]
[1747782299557,1.3498,2517.7,2517.5,1.3597]
[1747782299761,13.38008,2517.9,2517.8,0.7941]
[1747782299969,0.79413,2517.8,2517.7,0.79413]
[1747782300269,14.57789096,2517.9,2517.5,1.3597]
[1747782300460,0.79417,2517.6,2517.5,2.1539]
[1747782300761,0.79417,2517.6,2517.5,1.3597]
[1747782300960,2.78023001,2517.6,2517.5,2.1539]
[1747782301166,1.98606001,2517.6,2517.5,2.1539]
[1747782301369,15.79975096,2517.9,2517.8,0.7941]
[1747782301370,12.59195096,2517.9,2517.8,0.7941]
[1747782301565,0.00595096,2517.9,2517.8,0.7941]
[1747782301773,13.38086,2518.6,2518.5,0.79388]
[1747782301974,0.79391,2518.5,2518.4,0.79389]
[1747782302165,0.79391,2518.5,2518.4,2.16899]
[1747782302474,12.587,2518.9,2518.8,0.79376]
[1747782302764,1.3832,2519.3,2519.2,0.79366]
[1747782302970,0.79363,2519.3,2519.2,0.79366]
[1747782303162,1.98472,2519.3,2518.9,1.3751]
[1747782303364,4.06330096,2519.5,2518.9,1.3751]
[1747782303566,0.79362,2519.4,2519.3,0.79362]
[1747782303968,2.77826,2519.4,2519.3,0.79362]
[1747782304183,0.00595096,2519.5,2519.0,3.2078]
[1747782304482,0.00595096,2519.5,2519.4,4.0014]
[1747782304866,0.00595096,2519.5,2519.4,5.98596]
[1747782305174,0.65480826,2519.8,2519.7,0.7935]
[1747782305665,0.79354,2519.6,2519.5,1.3743]
[1747782306169,0.65480826,2519.8,2519.7,0.7935]
[1747782306374,0.66075922,2519.8,2519.6,0.79351]
[1747782306568,1.45425922,2519.8,2519.7,1.3743]
[1747782306771,0.00595096,2519.8,2519.7,2.1678]
[1747782306978,1.99027597,2519.8,2519.7,2.1678]
[1747782307473,0.00595096,2519.8,2519.7,4.152125]
[1747782308666,2.78374597,2519.8,2519.7,2.1678]
[1747782308868,1.99027597,2519.8,2519.7,2.1678]
[1747782309368,0.00595096,2519.8,2519.7,2.1678]
[1747782309677,1.99027597,2519.8,2519.7,2.1678]
[1747782309876,0.00595096,2519.8,2519.7,2.1678]
[1747782310067,0.79942096,2519.8,2519.7,2.1678]
[1747782310475,2.78374597,2519.8,2519.7,1.3743]
[1747782310671,0.79357,2519.5,2519.4,3.2078]
[1747782310875,0.7936,2519.4,2519.3,0.79361]
[1747782311271,2.77824,2519.4,2519.3,0.79361]
[1747782312585,0.79363,2519.3,2519.2,1.3247]
[1747782312782,0.79363,2519.3,2519.2,2.11836]
[1747782312976,1.98472,2519.3,2519.2,2.11836]
[1747782313478,13.36254,2519.6,2519.5,0.79357]
[1747782313678,0.79363,2519.3,2519.2,1.3247]
[1747782313881,0.79363,2519.3,2519.2,2.11836]
[1747782314081,2.77835,2519.3,2519.2,2.11836]
[1747782314481,0.79369,2519.1,2519.0,3.2078]
[1747782314979,0.79369,2519.1,2518.6,1.99057096]
[1747782314980,0.79382,2518.7,2518.6,0.00595096]
[1747782315476,2.77901,2518.7,2518.6,0.00595096]
[1747782315880,3.2078,2519.1,2518.6,1.99114096]
[1747782316183,4.607,2519.4,2519.1,0.79368]
[1747782316369,6.59191501,2519.4,2518.8,3.2078]
[1747782316575,0.79376,2518.9,2518.8,0.79379]
[1747782316775,0.79368,2519.2,2519.1,0.79366]
[1747782316985,1.984955,2519.2,2519.1,0.79366]
[1747782317382,12.569,2519.5,2519.1,1.984795]
[1747782317677,12.569,2519.5,2518.7,0.6932]
[1747782317881,42.90613,2519.4,2519.3,0.79361]
[1747782318185,0.79363,2519.4,2519.3,0.79361]
[1747782318376,0.79362,2519.4,2519.3,0.7936]
[1747782318577,2.77826,2519.4,2519.3,0.7936]
[1747782320082,1.3125,2519.6,2519.3,3.96871]
[1747782320280,0.00595096,2519.8,2519.7,0.7935]
[1747782320479,0.79942096,2519.8,2519.7,0.7935]
[1747782320785,0.79942096,2519.8,2519.7,2.777825]
[1747782320980,0.79942096,2519.8,2519.7,1.984325]
[1747782321189,0.79357,2519.6,2519.4,1.3556]
[1747782321486,0.00595096,2519.8,2519.4,1.3556]
[1747782321689,0.79942096,2519.8,2519.7,0.7935]
[1747782322188,0.00595096,2519.8,2519.7,0.7935]
[1747782322987,0.00595096,2519.8,2519.7,2.777825]
[1747782324191,0.00595096,2519.8,2519.6,0.79351]
[1747782324483,0.79352,2519.7,2519.6,0.79351]
[1747782324675,0.79945096,2519.8,2519.7,0.7935]
[1747782325079,0.79945096,2519.8,2519.7,2.777825]
[1747782325286,0.00595096,2519.8,2519.7,2.777825]
[1747782325690,0.00595096,2519.8,2519.7,0.7935]
[1747782326385,0.00595096,2519.8,2519.7,2.777825]
[1747782326986,3.2078,2520.6,2520.0,1.98346]
[1747782327188,0.79327,2520.5,2520.4,0.79325]
[1747782327387,0.79324,2520.6,2520.5,0.79323]
[1747782327887,1.98369501,2520.6,2520.5,0.79323]
[1747782328087,2.77691501,2520.6,2520.5,0.79323]
[1747782328588,1.98369501,2520.6,2520.5,0.79323]
[1747782328893,0.00595096,2520.8,2520.7,0.79319]
[1747782329392,2.78264596,2520.8,2520.7,0.79319]
[1747782329583,0.79328,2520.4,2520.3,0.00595096]
[1747782329887,0.00595096,2520.8,2520.7,0.79319]
[1747782330190,1.98948596,2520.8,2520.7,0.79319]
[1747782332688,0.00595096,2520.8,2520.7,0.79319]
[1747782332893,0.00595096,2520.8,2520.7,2.77672499]
[1747782333593,0.79303,2521.3,2521.2,0.79301]
[1747782333993,2.776175,2521.3,2521.2,0.79301]
[1747782334189,0.79294,2521.5,2521.4,0.79294]
[1747782334394,0.79297,2521.4,2521.3,2.11988]
[1747782334590,0.79297,2521.4,2521.3,4.10294499]
[1747782334895,0.79297,2521.4,2521.3,2.11988]
[1747782335196,0.79308,2521.1,2520.9,3.2078]
[1747782335395,1.98277,2521.0,2520.6,3.2078]
[1747782335591,0.79319,2520.7,2520.6,4.5189]
[1747782335787,0.79319,2520.7,2520.6,5.31212]
[1747782335992,0.79319,2520.7,2520.6,7.295735]
[1747782336293,2.17844477,2520.8,2520.7,0.79319]
[1747782336489,4.16201977,2520.8,2520.7,0.79319]
[1747782336698,0.79319,2520.7,2520.6,3.2078]
[1747782336996,0.79328,2520.4,2520.3,1.17552529]
[1747782337192,0.79328,2520.4,2520.3,0.00595096]
[1747782337398,2.77713,2520.4,2520.3,0.00595096]
[1747782338097,2.77713,2520.4,2520.3,0.79927096]
[1747782338299,1.98385,2520.4,2520.3,2.14697096]
[1747782338495,2.77713,2520.4,2520.3,2.14697096]
[1747782340198,1.3861,2520.6,2520.5,0.79325]
[1747782340400,0.79328,2520.4,2520.3,1.35365096]
[1747782340590,2.17937,2520.5,2520.3,1.35365096]
[1747782340797,0.79327,2520.5,2520.4,0.79328]
[1747782342093,0.79324,2520.6,2520.5,0.79322]
[1747782342591,1.98369501,2520.6,2520.5,0.79322]
[1747782342790,0.08486477,2520.8,2520.7,0.79319]
[1747782343200,2.06839977,2520.8,2520.5,3.2078]
[1747782343395,0.79328,2520.4,2520.3,0.00595096]
[1747782343896,2.77713,2520.4,2520.3,0.00595096]
[1747782344102,1.98385,2520.4,2520.3,0.79927096]
[1747782345701,0.79324,2520.6,2520.5,0.79325]
[1747782345902,2.7549,2520.7,2520.6,0.79322]
[1747782346295,4.738515,2520.7,2520.6,0.79322]
[1747782346693,1.983615,2520.7,2520.6,0.79322]
[1747782347506,0.08486477,2520.8,2520.7,0.79319]
[1747782347707,0.08486477,2520.8,2520.7,2.07299]
[1747782347895,0.08486477,2520.8,2520.7,4.05652499]
[1747782349603,13.34602,2521.3,2521.2,0.79303]
[1747782349604,1.3365,2521.3,2521.2,0.79303]
[1747782350008,3.319645,2521.3,2521.2,0.79303]
[1747782350812,54.7323,2521.5,2521.4,0.79297]
[1747782351011,15.915365,2521.5,2521.4,0.79297]
[1747782351213,1.38642198,2521.6,2521.5,0.79294]
[1747782351214,0.00592198,2521.6,2521.5,0.79294]
[1747782351402,0.00592198,2521.6,2521.5,5.30754]
[1747782351603,0.00592198,2521.6,2521.5,7.290445]
[1747782351816,1.98e-06,2521.6,2521.5,12.290445]
[1747782352208,2.4e-07,2521.7,2521.6,0.79291]
[1747782352411,0.79279,2522.0,2521.5,8.479815]
[1747782352706,1.3805,2522.1,2522.0,0.79278]
[1747782353107,3.363015,2522.1,2522.0,0.79278]
[1747782353308,2.4e-07,2522.3,2522.2,0.79272]
[1747782353508,3.37653524,2522.3,2522.2,0.79272]
[1747782353709,3.37653524,2522.3,2521.8,3.87925096]
[1747782354014,1.39410024,2522.3,2522.2,0.79272]
[1747782354515,4.16914524,2522.3,2522.2,0.79272]
[1747782354709,2.4e-07,2522.3,2522.2,2.775075]
[1747782355014,2.4e-07,2522.3,2522.2,4.177975]
[1747782355607,2.4e-07,2522.3,2522.2,16.727975]
[1747782356010,2.4e-07,2522.3,2522.2,4.177975]
[1747782357415,0.79268,2522.4,2522.3,0.79266]
[1747782357612,0.79269,2522.3,2522.2,1.4029]
[1747782358013,1.982355,2522.3,2522.2,2.19562]
[1747782358221,3.2078,2522.6,2522.2,6.593055]
[1747782358418,0.79265,2522.4,2522.3,1.3298]
[1747782358621,0.7927,2522.3,2522.0,0.667]
[1747782358810,0.7927,2522.3,2522.2,0.79268]
[1747782359010,2.775135,2522.3,2522.2,0.79268]
[1747782359414,0.79272,2522.2,2522.1,2.12253]
[1747782359618,1.2895,2522.2,2522.1,2.12253]
[1747782359818,4.064655,2522.2,2522.1,2.12255]
[1747782360019,3.271935,2522.2,2522.1,2.12255]
[1747782360220,1.982435,2522.2,2522.1,2.12255]
[1747782360416,0.79267,2522.4,2522.3,0.79267]
[1747782360610,1.2895,2522.5,2522.1,1.3298]
[1747782360813,3.2078,2522.3,2521.8,0.00595096]
[1747782361117,0.79278,2522.1,2522.0,0.79276]
[1747782361319,0.79278,2522.0,2521.9,2.18649]
[1747782361812,2.775375,2522.0,2521.9,2.18649]
[1747782362007,1.2895,2522.2,2522.0,0.79276]
[1747782362214,0.79278,2522.0,2521.9,1.3937]
[1747782362421,0.79278,2522.0,2521.9,2.18648]
[1747782362719,0.79281,2521.9,2521.8,4.00658096]
[1747782362920,2.09811,2521.9,2521.8,4.00658096]
[1747782363216,4.08078,2521.9,2521.8,4.00658096]
[1747782363418,4.08078,2521.9,2521.8,3.21375096]
[1747782364520,4.08078,2521.9,2521.2,3.2078]
[1747782364521,0.793,2521.3,2521.2,3.2078]
[1747782364729,0.793,2521.3,2520.9,1.376]
[1747782364730,0.7931,2521.0,2520.9,1.376]
[1747782364918,0.79309,2521.1,2521.0,0.79308]
[1747782365118,0.7931,2521.0,2520.9,1.376]
[1747782365619,2.77648,2521.0,2520.9,2.16913]
[1747782366722,43.45945096,2521.2,2521.1,0.79306]
[1747782366723,15.31109096,2521.2,2521.1,0.79306]
[1747782366922,0.7931,2521.0,2520.9,2.16912]
[1747782367316,2.77648,2521.0,2520.9,1.376]
[1747782367520,0.79316,2520.8,2520.7,4.00694096]
[1747782367724,2.18645,2520.9,2520.8,0.79316]
[1747782367918,0.6591,2521.1,2520.8,1.9829]
[1747782368116,2.64248,2521.1,2521.0,0.79309]
[1747782368325,1.39925096,2521.2,2521.1,0.79306]
[1747782368625,0.7931,2521.1,2521.0,0.79308]
[1747782369222,2.77639,2521.1,2521.0,0.79306]
[1747782369421,1.9833,2521.1,2521.0,0.79306]
[1747782369623,1.9833,2521.1,2520.9,1.3895]
[1747782369624,0.00595096,2521.2,2521.1,0.79306]
[1747782370020,1.98917096,2521.2,2521.1,0.79306]
[1747782370821,0.00595096,2521.2,2521.1,0.79306]
[1747782371323,1.98917096,2521.2,2520.9,2.1826]
[1747782371525,0.00595096,2521.2,2521.1,0.79306]
[1747782372023,9.6e-07,2521.2,2521.1,7.77628]
[1747782372221,9.6e-07,2521.2,2521.1,21.16028]
[1747782372423,9.6e-07,2521.2,2521.1,23.83558]
[1747782373128,0.08486477,2522.1,2522.0,0.79278]
[1747782373530,0.08486477,2522.1,2522.0,2.775295]
[1747782373729,0.08486477,2522.1,2522.0,4.128695]
[1747782375526,4.77e-06,2522.1,2522.0,4.128695]
[1747782376122,4.77e-06,2522.1,2522.0,9.128695]
[1747782376324,0.98830111,2522.6,2522.0,9.128695]
[1747782376325,1.30750184,2522.9,2522.5,0.79262]
[1747782376525,1.30750184,2522.9,2522.6,1.4011]
[1747782376724,3.28950684,2522.9,2522.7,0.79256]
[1747782377031,1.3148,2522.8,2522.7,0.79256]
[1747782377528,3.296765,2522.8,2522.7,0.79256]
[1747782377728,3.2078,2523.4,2523.3,0.79237]
[1747782377930,5.189295,2523.4,2522.9,0.7925]
[1747782378127,0.79245,2523.1,2522.8,1.342]
[1747782378325,1.3154,2523.0,2522.9,0.7925]
[1747782378732,3.297205,2523.0,2522.9,0.7925]
[1747782379235,4.089675,2523.0,2522.9,0.7925]
[1747782379430,3.297205,2523.0,2522.4,0.00595096]
[1747782379636,5.278425,2523.0,2522.5,1.342]
[1747782379928,0.79257,2522.7,2522.6,0.79257]
[1747782380432,2.774615,2522.7,2522.6,0.79257]
[1747782380633,4.090015,2522.7,2522.6,0.79257]
[1747782380835,0.79261,2522.6,2522.5,0.79261]
[1747782381037,1.3141,2522.6,2522.5,0.79261]
[1747782381235,3.29622,2522.6,2522.5,0.79261]
[1747782381730,1.3141,2522.6,2522.5,2.08881]
[1747782381928,3.29622,2522.6,2522.5,2.08881]
[1747782382423,4.08881,2522.6,2522.5,2.08881]
[1747782382628,4.08881,2522.6,2522.5,0.79261]
[1747782382831,3.29622,2522.6,2522.5,0.79261]
[1747782383029,3.29622,2522.6,2522.5,2.08881]
[1747782383233,1.98212,2522.6,2522.5,2.08881]
[1747782384041,1.3141,2522.8,2522.7,0.79256]
[1747782384238,3.2078,2523.2,2522.6,1.98147]
[1747782384437,2.12925,2523.1,2523.0,0.79247]
[1747782384845,0.79251,2523.0,2522.9,0.79249]
[1747782385138,0.7925,2522.9,2522.8,2.15622]
[1747782385530,2.77438501,2522.9,2522.8,2.15622]
[1747782385734,3.31868501,2522.9,2522.8,2.15622]
[1747782385935,4.11118501,2522.9,2522.8,1.3637]
[1747782386133,0.79253,2522.8,2522.7,0.79254]
[1747782386332,2.12933,2522.8,2522.7,0.79254]
[1747782386539,3.318765,2522.8,2522.7,0.79254]
[1747782386731,1.981965,2522.8,2522.7,0.79254]
[1747782387541,1.3997,2523.1,2523.0,0.79247]
[1747782387749,1.3128,2523.3,2523.2,0.7924]
[1747782387939,0.7924,2523.2,2523.1,2.20372]
[1747782388139,1.98109,2523.1,2522.8,3.2078]
[1747782388442,0.79259,2522.7,2522.6,0.79257]
[1747782388941,0.79262,2522.5,2522.2,3.2078]
[1747782389149,0.79262,2522.5,2522.4,0.79860096]
[1747782389346,2.77482,2522.5,2522.4,0.79860096]
[1747782389542,4.17452,2522.5,2522.4,0.79860096]
[1747782389843,3.3819,2522.5,2522.4,0.79860096]
[1747782390039,13.32955,2522.8,2522.5,0.79262]
[1747782390245,12.537,2522.8,2522.7,0.79256]
[1747782390441,4.5433,2522.9,2522.8,0.79253]
[1747782390649,5.18968501,2522.9,2522.8,0.79253]
[1747782390838,3.2078,2522.9,2522.8,0.79253]
[1747782391140,4.0003,2522.9,2522.8,0.79253]
[1747782391334,5.18968501,2522.9,2522.5,3.2078]
[1747782391542,0.79262,2522.5,2522.4,0.79860096]
[1747782391745,0.79262,2522.5,2522.4,0.00595096]
[1747782391937,2.77482,2522.5,2522.4,0.00595096]
[1747782392137,4.77992,2522.5,2522.4,0.00595096]
[1747782392841,1.98171,2522.4,2521.9,4.5546]
[1747782393035,0.79278,2522.0,2521.9,5.34739]
[1747782393235,0.79287,2521.7,2521.6,4.64479]
[1747782393438,0.79271,2522.3,2522.2,0.79269]
[1747782393643,4.106565,2522.3,2522.2,0.79269]
[1747782393945,1.982355,2522.3,2522.2,4.00049]
[1747782394341,0.00595096,2522.5,2522.4,0.79265]
[1747782394540,1.98823096,2522.5,2522.4,0.79265]
[1747782395048,2.78085096,2522.5,2522.4,0.79265]
[1747782395246,4.11235096,2522.5,2522.4,0.79265]
[1747782395547,3.31973096,2522.5,2522.4,0.79265]
[1747782395842,4.11235096,2522.5,2522.4,0.79265]
[1747782396342,3.31973096,2522.5,2522.4,0.79265]
[1747782396538,4.11235096,2522.5,2522.4,0.79265]
[1747782396741,3.31973096,2522.5,2522.4,2.20095]
[1747782397239,4.11235096,2522.5,2522.4,1.4083]
[1747782397542,4.11235096,2522.5,2522.3,4.00047]
[1747782397543,0.79265,2522.4,2522.3,0.79267]
[1747782397743,2.17765,2522.4,2522.3,0.79267]
[1747782397943,4.15993,2522.4,2522.3,0.79267]
[1747782398638,4.15993,2522.4,2522.3,2.20097]
[1747782398849,0.79272,2522.2,2522.1,0.79274]
[1747782399239,2.775155,2522.2,2522.1,0.79274]
[1747782399540,4.105155,2522.2,2522.1,0.79274]
[1747782399842,3.312435,2522.2,2522.1,0.79274]
[1747782400044,4.105155,2522.2,2522.1,0.79274]
[1747782400245,0.79275,2522.1,2522.0,0.79871096]
[1747782400445,2.12275,2522.1,2522.0,0.00595096]
[1747782400647,4.105265,2522.1,2522.0,0.00595096]
[1747782401545,9.105265,2522.1,2522.0,0.00595096]
[1747782402051,0.00595096,2522.5,2522.0,3.97039596]
[1747782402241,0.7927,2522.3,2522.2,0.79268]
[1747782402546,0.79272,2522.2,2522.1,1.2996]
[1747782402748,0.00595096,2522.5,2522.1,1.2996]
[1747782402944,3.35527096,2522.5,2522.4,0.79265]
[1747782403144,4.14789096,2522.5,2522.4,0.79265]
[1747782403446,0.79269,2522.3,2522.2,0.7927]
[1747782403647,0.79267,2522.4,2522.3,0.79265]
[1747782403852,2.15967,2522.4,2522.3,0.79265]
[1747782404047,0.79271,2522.3,2522.2,0.79269]
[1747782404249,0.79269,2522.3,2522.2,2.09231]
[1747782404549,3.349355,2522.3,2522.2,2.09231]
[1747782404855,4.142045,2522.3,2522.2,2.09231]
[1747782405040,3.349355,2522.3,2522.0,0.00595096]
[1747782405245,19.094155,2522.3,2522.0,0.00595096]
[1747782405448,0.702,2522.2,2522.1,0.79273]
[1747782405746,1.982435,2522.2,2522.1,2.15863]
[1747782406252,2.19535,2522.4,2522.3,0.79269]
[1747782406651,3.38498,2522.4,2522.1,1.3659]
[1747782406952,0.7927,2522.3,2522.2,0.79269]
[1747782407450,1.4027,2522.4,2522.3,0.79269]
[1747782407650,4.177705,2522.4,2522.3,0.79269]
[1747782407850,3.385055,2522.4,2522.3,0.79269]
[1747782408051,4.177705,2522.4,2522.3,0.79269]
[1747782409055,0.00595096,2522.5,2522.4,0.79265]
[1747782409250,0.79265,2522.4,2522.3,2.08275]
[1747782409653,5.23664,2522.4,2522.0,0.00595096]